Workbook

Sheet Tabelle1
A1: Wertpapiere | D1: 2013-09-03 | H1: Ist-Allokation | I1: Ziel Allokation [BIP 2014] | J1: Transaktion | K1: Zusatzinvest | L1: 0 | M1: Differenz Soll / Ist | N1: Stückzahl neu
A2: Name | B2: ID/WKN | C2: Waehrung | D2: Anteilspreis | E2: Anteile | F2: Wechselkurs | G2: Wert <EUR> | K2: Ttl. Invest | L2: =L1+G14 -> 60545.93
K3: Neue Allokation | L3: Abweichung
A4: iShares STOXX Europe 600 (DE) | D4: 34.7 | E4: 340 | F4: 1 | G4: =(D4*E4*F4) -> 11798 | H4: =G4/$G$14 -> 0.1948603317 | I4: 0.1855 | K4: =(J4+G4)/$L$2 -> 0.1948603317 | L4: =(K4-I4)/I4 -> 0.05046000891 | M4: =I4*$L$2-K4*$L$2 -> -566.729985 | N4: =M4/D4 -> -16.33227622
A5: ComStage ETF MSCI North America | D5: 45.681 | E5: 294 | F5: 1 | G5: =D5*E5*F5 -> 13430.214 | H5: =G5/$G$14 -> 0.2218186094 | I5: 0.21 | K5: =(J5+G5)/$L$2 -> 0.2218186094 | L5: =(K5-I5)/I5 -> 0.05627909258 | M5: -715.5687 | N5: =M5/D5 -> -15.66447101
A6: COMSTAGE ETF MSCI PACIFIC | D6: 39.443 | E6: 124 | F6: 1 | G6: =D6*E6*F6 -> 4890.932 | H6: 0.0807805248 | I6: 0.0766 | K6: 0.0807805248 | L6: 0.0545760418 | M6: -253.113762 | N6: -6.41720361
A7: DB X-TRACKERS MSCI EMERGING MARKETS | D7: 31.355 | E7: 448 | F7: 1 | G7: =D7*E7*F7 -> 14047.04 | H7: 0.2320063463 | I7: 0.2279 | K7: 0.2320063463 | L7: 0.01801819331 | M7: -248.622553 | N7: -7.929279317
A8: DB X-TRACKERS EMERGING MARKETS LIQUID EUROBOND | D8: 300.437 | E8: =18+O8+P8+Q8+R8+S8 -> 18 | F8: 1 | G8: 5407.866 | H8: 0.0893184067 | I8: 0.1 | K8: 0.0893184067 | L8: -0.106815933 | M8: 646.727 | N8: 2.152621015
A9: iShares Markit iBoxx EUR Covered Bond (DE) | D9: 154.779 | E9: =34+O9+P9+Q9+R9+S9 -> 34 | F9: 1 | G9: =(D9*E9*F9) -> 5262.486 | H9: 0.08691725439 | I9: 0.1 | K9: 0.08691725439 | L9: -0.1308274561 | M9: 792.107 | N9: 5.117664541
A10: Lyxor MTS Global | D10: 167.923 | E10: =34+O10+P10+Q10+R10+S10 -> 34 | F10: 1 | G10: 5709.382 | H10: 0.09429836159 | I10: 0.1 | K10: 0.09429836159 | L10: =(K10-I10)/I10 -> -0.05701638409 | M10: 345.211 | N10: 2.055769609
F11: Subtotal | G11: =SUM(G4:G10) -> 60545.92
I12: Ttl. | J12: =SUM(J4:J10) -> 0
F13: Barbestand | G13: 0.01 | H13: =G13/G14 -> 1.651638682e-07 | I13: Verfuegbar | J13: =L1+G14-J12 -> 60545.93
F14: Total | G14: =SUM(G11:G13) -> 60545.93 | H14: =SUM(G11:G13)/G14 -> 1

Sheet Tabelle2

Sheet Tabelle3
